lending/lending_fUSD_20260312
["ID","MTS","AMOUNT","RATE_DAILY","PERIOD"]
[408280357,1773345046415,-539.24,0.00049499,120]
[408280358,1773345046426,-250.0,0.00049499,120]
[408280359,1773345046436,-250.0,0.00049499,120]
[408280360,1773345046445,-8260.13072239,0.00049499,120]
[408280361,1773345046455,-500.0,0.00049499,120]
[408280362,1773345046464,-559.19188,0.00049499,120]
[408280363,1773345046474,-250.0,0.00049499,120]
[408280364,1773345046483,-250.0,0.00049499,120]
[408280365,1773345046493,-8565.75555911,0.00049499,120]
[408280366,1773345046503,-500.0,0.00049499,120]
[408280367,1773345046512,-579.88197956,0.00049499,120]
[408280368,1773345046522,-250.0,0.00049499,120]
[408280369,1773345046532,-8882.6885148,0.00049499,120]
[408280370,1773345046541,-250.0,0.00049499,120]
[408280371,1773345046551,-500.0,0.00049499,120]
[408280372,1773345046561,-170.0,0.00049499,120]
[408280373,1773345046572,-677.81349959,0.00049499,120]
[408280374,1773345046583,-250.0,0.00049499,120]
[408280375,1773345046596,-9211.34798985,0.00049499,120]
[408280376,1773345046606,-250.0,0.00049499,120]
[408280377,1773345046616,-176.29,0.00049499,120]
[408280378,1773345046627,-300.0,0.00049499,30]
[408280379,1773345046637,-250.0,0.00049499,120]
[408280380,1773345046646,-182.81273,0.00049499,120]
[408280381,1773345046657,-250.0,0.00049499,120]
[408280382,1773345046667,-189.57680101,0.00049499,120]
[408280383,1773345046677,-196.59114265,0.00049499,120]
[408280384,1773345046687,-250.0,0.00049499,120]
[408280385,1773345046696,-203.86501493,0.00049499,120]
[408280386,1773345046707,-250.0,0.00049499,120]
[408280387,1773345046716,-500.0,0.00049499,120]
[408280388,1773345046726,-1500.0,0.00049499,120]
[408280389,1773345046736,-666.0,0.00049499,30]
[408280390,1773345046746,-211.40802048,0.00049499,120]
[408280391,1773345046755,-250.0,0.00049499,120]
[408280392,1773345046764,-500.0,0.00049499,120]
[408280393,1773345046774,-1500.0,0.00049499,120]
[408280394,1773345046783,-151.0,0.00049499,120]
[408280395,1773345046793,-219.23011724,0.00049499,120]
[408280396,1773345046802,-250.0,0.00049499,120]
[408280397,1773345046811,-1000.0,0.00049499,120]
[408280398,1773345046821,-500.0,0.00049499,120]
[408280399,1773345046830,-1500.0,0.00049499,120]
[408280400,1773345046839,-156.587,0.00049499,120]
[408280401,1773345046849,-227.34163157,0.00049499,120]
[408280402,1773345046859,-250.0,0.00049499,120]
[408280403,1773345046868,-500.0,0.00049499,120]
[408280404,1773345046878,-773.73733787,0.00049499,120]
[408280405,1773345046889,-1500.0,0.00049499,120]
[408280406,1773345046898,-162.380719,0.00049499,120]
[408280407,1773345046908,-235.75327194,0.00049499,120]
[408280408,1773345046918,-7957.31703756,0.00049499,120]
[408280409,1773345046928,-250.0,0.00049499,120]
[408280410,1773345046938,-500.0,0.00049499,120]
[408280411,1773345046947,-168.3888056,0.00049499,120]
[408280412,1773345046958,-244.476143,0.00049499,120]
[408280413,1773345046967,-1500.0,0.00049499,120]
[408280414,1773345046977,-500.0,0.00049499,120]
[408280415,1773345046986,-288.77710282,0.00049499,120]
[408280416,1773345046996,-174.61919141,0.00049499,120]
[408280417,1773345047006,-382.46469951,0.00049499,120]
[408280418,1773345047016,-1500.0,0.00049499,120]
[408280419,1773345047026,-500.0,0.00049499,120]
[408280420,1773345047036,-273.98300028,0.00049499,120]
[408280421,1773345047046,-500.0,0.00049499,120]
[408280422,1773345047056,-1500.0,0.00049499,120]
[408280423,1773345047066,-500.0,0.00049499,120]
[408280424,1773345047075,-500.0,0.00049499,120]
[408280425,1773345047085,-1500.0,0.00049499,120]
[408280426,1773345047095,-500.0,0.00049499,120]
[408280427,1773345047104,-500.0,0.00049499,120]
[408280428,1773345047115,-1500.0,0.00049499,120]
[408280429,1773345047125,-500.0,0.00049499,120]
[408280430,1773345047135,-500.0,0.00049499,120]
[408280431,1773345047144,-500.0,0.00049499,120]
[408280432,1773345047154,-1500.0,0.00049499,120]
[408280433,1773345047163,-500.0,0.00049499,120]
[408280434,1773345047172,-500.0,0.00049499,120]
[408280435,1773345047183,-151.0,0.00049499,120]
[408280436,1773345047192,-1500.0,0.00049499,120]
[408280437,1773345047202,-500.0,0.00049499,120]
[408280438,1773345047211,-500.0,0.00049499,120]
[408280439,1773345047221,-151.0,0.00049499,120]
[408280440,1773345047230,-500.0,0.00049499,120]
[408280441,1773345047239,-1500.0,0.00049499,120]
[408280442,1773345047292,-500.0,0.00049499,120]
[408280443,1773345047301,-500.0,0.00049499,120]
[408280444,1773345047310,-151.0,0.00049499,120]
[408280445,1773345047319,-1500.0,0.00049499,120]
[408280446,1773345047329,-500.0,0.00049499,120]
[408280447,1773345047338,-500.0,0.00049499,120]
[408280448,1773345047348,-151.0,0.00049499,120]
[408280449,1773345047357,-500.0,0.00049499,120]
[408280450,1773345047366,-151.0,0.00049499,120]
[408280451,1773345047375,-500.0,0.00049499,120]
[408280452,1773345047384,-151.0,0.00049499,120]
[408280453,1773345047393,-500.0,0.00049499,120]
[408280454,1773345047403,-500.0,0.00049499,120]
[408280455,1773345047412,-151.0,0.00049499,120]
[408280456,1773345047421,-500.0,0.00049499,120]
[408280457,1773345047430,-151.0,0.00049499,120]
[408280458,1773345047440,-151.0,0.00049499,120]
[408280459,1773345047449,-500.0,0.00049499,120]
[408280460,1773345047460,-151.0,0.00049499,120]
[408280461,1773345047469,-500.0,0.00049499,120]
[408280462,1773345047479,-1500.0,0.00049499,120]
[408280463,1773345047489,-151.0,0.00049499,120]
[408280464,1773345047498,-151.0,0.00049499,120]
[408280465,1773345047507,-151.0,0.00049499,120]
[408280466,1773345047516,-500.0,0.00049499,120]
[408280467,1773345047526,-151.0,0.00049499,120]
[408280468,1773345047535,-500.0,0.00049499,120]
[408280469,1773345047544,-151.0,0.00049499,120]
[408280470,1773345047553,-1500.0,0.00049499,120]
[408280471,1773345047563,-151.0,0.00049499,120]
[408280472,1773345047573,-1592.44280863,0.00049499,120]
[408280473,1773345047583,-500.0,0.00049499,120]
[408280474,1773345047596,-500.0,0.00049499,120]
[408280475,1773345047607,-500.0,0.00049499,120]
[408280476,1773345047616,-500.0,0.00049499,120]
[408280477,1773345047625,-500.0,0.00049499,120]
[408280478,1773345047635,-500.0,0.00049499,120]
[408280479,1773345047645,-500.0,0.00049499,120]
[408280480,1773345047654,-500.0,0.00049499,120]
[408280481,1773345047664,-500.0,0.00049499,120]
[408280482,1773345047674,-500.0,0.00049499,120]
[408280483,1773345047683,-500.0,0.00049499,120]
[408280484,1773345047692,-500.0,0.00049499,120]
[408280485,1773345047702,-500.0,0.00049499,120]
[408280486,1773345047711,-500.0,0.00049499,120]
[408280487,1773345047721,-500.0,0.00049499,120]
[408280488,1773345047731,-500.0,0.00049499,120]
[408280489,1773345047740,-500.0,0.00049499,120]
[408280490,1773345047750,-588.40591804,0.00049499,120]
[408280491,1773345047759,-500.0,0.00049499,120]
[408280492,1773345047768,-500.0,0.00049499,120]
[408280493,1773345047778,-500.0,0.00049499,120]
[408280494,1773345047788,-500.0,0.00049499,120]
[408280495,1773345047798,-500.0,0.00049499,120]
[408280496,1773345047807,-500.0,0.00049499,120]
[408280497,1773345047817,-500.0,0.00049499,120]
[408280498,1773345047827,-500.0,0.00049499,120]
[408280499,1773345047838,-750.0,0.00049499,120]
[408280500,1773345047848,-500.0,0.00049499,120]
[408280501,1773345047858,-500.0,0.00049499,120]
[408280502,1773345047867,-500.0,0.00049499,120]
[408280503,1773345047877,-500.0,0.00049499,120]
[408280504,1773345047887,-500.0,0.00049499,120]
[408280505,1773345047896,-500.0,0.00049499,120]
[408280506,1773345047908,-500.0,0.00049499,120]
[408280507,1773345047918,-500.0,0.00049499,120]
[408280508,1773345047928,-500.0,0.00049499,120]
[408280509,1773345047938,-500.0,0.00049499,120]
[408280510,1773345047948,-500.0,0.00049499,120]
[408280511,1773345047959,-1030.0,0.00049499,120]
[408280512,1773345047969,-500.0,0.00049499,120]
[408280513,1773345047978,-1068.11,0.00049499,120]
[408280514,1773345047988,-500.0,0.00049499,120]
[408280515,1773345047997,-500.0,0.00049499,120]
[408280516,1773345048007,-518.5,0.00049499,120]
[408280517,1773345048017,-1107.63007,0.00049499,120]
[408280518,1773345048027,-186.97123899,0.00049499,120]
[408280519,1773345048110,-19243.89711347,0.0003554,2]
[408280520,1773345048120,-206.88,0.00045,30]
[408280521,1773345048130,-206.88,0.0004725,30]
[408280522,1773345048140,-193.26,0.00047768,14]
[408280523,1773345048149,-313.02876101,0.00049499,120]
[408280524,1773345048159,-537.6845,0.00049499,120]
[408280525,1773345048169,-1148.61238259,0.00049499,120]
[408280526,1773345048179,-202.91768508,0.00049499,120]
[408280527,1773345048216,-185.52212688,0.000494,2]
[408280528,1773345048226,-151.0,0.00049479,120]
[408280529,1773345048235,-297.08231492,0.00049499,120]
[408280530,1773345048244,-212.88810027,0.00049499,120]
[408280531,1773345068548,267.39698763,0.00014368,2]
[408280532,1773345071512,150.0,0.00014368,2]
[408280533,1773345072512,150.0,0.00014368,2]
[408280534,1773345072606,150.0,0.00014368,2]
[408280535,1773345072634,500.0,0.00014368,2]
[408280536,1773345072769,150.0,0.00014368,2]
[408280537,1773345073437,500.0,0.00014368,2]
[408280538,1773345073485,177.62322685,0.00014368,2]
[408280539,1773345073989,500.0,0.00014368,2]
[408280540,1773345074141,500.0,0.00014368,2]
[408280541,1773345074735,500.0,0.00014368,2]
[408280542,1773345075126,150.81923528,0.00014368,2]
[408280543,1773345269088,173.74838973,0.00014323,2]
[408280551,1773345752552,269.64939665,0.000107,2]
[408280555,1773345759239,4703.42276386,9.5e-05,3]
[408280556,1773345759263,3296.58723614,9.5e-05,3]
[408280557,1773345759675,6703.42276386,0.0001,2]
[408280558,1773345759697,7159.45547177,0.0001,2]
[408280562,1773345787705,2840.55452823,7.945e-05,2]
[408280563,1773345787728,3266.66800377,7.945e-05,2]
[408280564,1773345853937,200.0,0.000126,2]
[408280566,1773345886882,173.19739293,0.0001,2]
[408280567,1773346037065,500.0,9.4e-05,2]
[408280568,1773346037537,819.22392426,9.4e-05,2]
[408280569,1773346037761,912.29870383,9.4e-05,2]
[408280570,1773346042991,631.20725913,9.4e-05,2]
[408280571,1773346046509,500.0,9.4e-05,2]
[408280572,1773346047007,500.0,9.4e-05,2]
[408280573,1773346165061,2497.41471608,0.000144,2]
[408280574,1773346165083,7502.58528392,0.000144,2]
[408280592,1773346231574,-268.19081318,0.00014422,2]
[408280593,1773346231584,-269.0,0.00014422,2]
[408280594,1773346231593,-668.60546206,0.00014532,2]
[408280595,1773346231607,-720.67453794,0.00014532,2]
[408280596,1773346231616,-237.08006913,0.00014541,2]
[408280597,1773346231625,-379.95525501,0.00014641,2]
[408280598,1773346231637,-494.57169146,0.00014641,2]
[408280599,1773346231648,-325.47305353,0.00014641,2]
[408280600,1773346231657,-1679.37324088,0.00014642,2]
[408280601,1773346231668,-413.46020109,0.00014642,2]
[408280602,1773346231686,-815.99709557,0.00014642,2]
[408280603,1773346231695,-500.0,0.00014642,2]
[408280604,1773346231705,-500.0,0.00014642,2]
[408280605,1773346231716,-497.49770464,0.00014642,2]
[408280606,1773346231725,-500.0,0.00014642,2]
[408280607,1773346231737,-500.0,0.00014642,2]
[408280608,1773346231747,-500.0,0.00014642,2]
[408280609,1773346231758,-500.0,0.00014642,2]
[408280610,1773346231767,-500.0,0.00014642,2]
[408280611,1773346231776,-150.0,0.00014999,2]
[408280612,1773346231787,-500.0,0.00015,30]
[408280613,1773346231796,-500.0,0.00015,30]
[408280616,1773346231808,-814.70211509,0.00015,30]
[408280618,1773346231818,-500.0,0.00015,30]
[408280620,1773346231827,-500.0,0.00015,30]
[408280622,1773346231836,-500.0,0.00015,30]
[408280624,1773346231845,-500.0,0.00015,30]
[408280626,1773346231855,-500.0,0.00015,30]
[408280628,1773346231864,-500.0,0.00015,30]
[408280630,1773346231873,-846.02005319,0.00015,30]
[408280632,1773346231882,-500.0,0.00015,30]
[408280633,1773346231891,-419.40203317,0.00015,30]
[408280635,1773346231900,-1502.67321171,0.00015601,2]
[408280637,1773346231911,-9999.99,0.00015601,2]
[408280639,1773346231924,-400.0,0.00015864,2]
[408280641,1773346231933,-250.0,0.00015864,2]
[408280642,1773346231943,-300.0,0.00015864,2]
[408280643,1773346231952,-250.0,0.00015864,2]
[408280644,1773346231963,-250.0,0.00015864,2]
[408280645,1773346231973,-1680.0,0.00016105,2]
[408280646,1773346231982,-255.0,0.00016124,2]
[408280647,1773346231993,-5000.00761061,0.000162,5]
[408280648,1773346232003,-10702.52,0.00016231,2]
[408280649,1773346232015,-20042.37,0.00016238,2]
[408280650,1773346232025,-3240.0,0.00016258,2]
[408280651,1773346232035,-200.0,0.00016265,2]
[408280652,1773346232044,-28453.48,0.00016374,2]
[408280653,1773346232053,-166.54,0.00016712,2]
[408280654,1773346232063,-1128.12,0.00016713,2]
[408280655,1773346232072,-2500.0,0.000169,2]
[408280656,1773346232082,-8084.62816427,0.000169,2]
[408280657,1773346232091,-166.66,0.00016948,2]
[408280658,1773346232101,-30265.12816896,0.00017,2]
[408280659,1773346232113,-11642.63899614,0.00017,2]
[408280665,1773346237660,-1626.87520625,0.00017,2]
[408280666,1773346237672,-4098.42588187,0.00017,2]
[408280667,1773346237711,-625428.35609715,0.00017,2]
[408280668,1773346237720,-152.22165155,0.00017,2]
[408280669,1773346237730,-508.0,0.00017,2]
[408280670,1773346237739,-77622.37824573,0.000171,2]
[408280671,1773346237749,-258.87735159,0.00017133,2]
[408280672,1773346237758,-8084.62816419,0.00017233,2]
[408280673,1773346237767,-166.66,0.00017508,2]
[408280674,1773346237777,-8084.62816419,0.00017567,2]
[408280675,1773346237786,-1128.12,0.00017593,2]
[408280676,1773346237795,-786.82467732,0.000177,2]
[408280677,1773346237812,-1007.41782398,0.0001786,2]
[408280678,1773346237823,-1229.1914403,0.0001789,2]
[408280679,1773346237832,-1077.11010336,0.0001789,2]
[408280680,1773346237842,-8084.62816419,0.000179,2]
[408280681,1773346237852,-229.41949874,0.00017974,2]
[408280682,1773346237861,-231.47960888,0.00017974,2]
[408280683,1773346237870,-166.66,0.00018067,2]
[408280685,1773346237880,-8084.62816419,0.00018233,2]
[408280687,1773346237889,-17908.6007,0.00018242,2]
[408280689,1773346237899,-1000.0,0.00018242,2]
[408280691,1773346237908,-1128.12,0.00018472,2]
[408280693,1773346237917,-258.87735157,0.00018517,2]
[408280695,1773346237930,-8084.62816419,0.00018567,2]
[408280697,1773346237940,-166.66,0.00018627,2]
[408280699,1773346237949,-8084.62816419,0.000189,2]
[408280701,1773346237958,-379.29541337,0.00019056,2]
[408280703,1773346237968,-166.66,0.00019186,2]
[408280705,1773346237979,-8084.62816419,0.00019233,2]
[408280708,1773346237988,-1128.12,0.00019352,2]
[408280710,1773346237997,-8084.62816419,0.00019567,2]
[408280712,1773346238009,-166.66,0.00019746,2]
[408280714,1773346238019,-373.86399521,0.000199,2]
[408280716,1773346238028,-258.87735157,0.000199,2]
[408280718,1773346238038,-8084.62816419,0.000199,2]
[408280719,1773346238047,-500.0,0.00019973,2]
[408280720,1773346238056,-500.0,0.00019973,2]
[408280721,1773346238066,-500.0,0.00019973,2]
[408280723,1773346238076,-14478.40492129,0.0001998,2]
[408280725,1773346238085,-300.0,0.00019999,2]
[408280727,1773346238094,-300.0,0.00019999,2]
[408280729,1773346238104,-300.0,0.00019999,2]
[408280730,1773346238114,-177431.49029068,0.0002,2]
[408280740,1773346239825,-387.12238923,0.0002,2]
[408280764,1773346242747,-520.35490348,0.0002,2]
[408280767,1773346245590,-442.60154905,0.0002,2]
[408280773,1773346246197,-349.54455998,0.0002,2]
[408280774,1773346346898,500.0,9.4e-05,2]
[408280775,1773346355023,500.0,9.4e-05,2]
[408280776,1773346355755,859.03555763,9.4e-05,2]
[408280780,1773346940476,500.0,9.4e-05,2]
[408280781,1773347238011,985.61,9.4e-05,2]
[408280782,1773347238651,664.35584699,9.4e-05,2]
[408280783,1773347243661,500.0,9.4e-05,2]
[408280784,1773347246682,500.0,9.4e-05,2]
[408280785,1773347247416,500.0,9.4e-05,2]
[408280786,1773347249098,500.0,9.4e-05,2]
[408280787,1773347250559,500.0,9.4e-05,2]
[408280788,1773347251053,966.0,9.4e-05,2]
[408280789,1773347315628,830.99,0.00014138,2]
[408280792,1773347389176,3016.57,0.00014114,2]
[408280805,1773347431779,-263.81130862,0.00014557,2]
[408280806,1773347431789,-14.71455757,0.00014561,2]
[408280807,1773347431801,-285.28544243,0.00014561,2]
[408280808,1773347431810,-4411.10092787,0.00014565,2]
[408280809,1773347431819,-166.66,0.00014573,2]
[408280810,1773347431829,-270.62653071,0.00014574,2]
[408280811,1773347431838,-250.0,0.00014583,2]
[408280812,1773347431847,-250.0,0.00014617,2]
[408280813,1773347431857,-166.66,0.0001488,2]
[408280814,1773347431866,-300.0,0.00014897,2]
[408280815,1773347431875,-300.0,0.00014898,2]
[408280816,1773347431884,-1200.0,0.00014898,2]
[408280817,1773347431894,-300.0,0.00014898,2]
[408280818,1773347431904,-300.0,0.00014898,2]
[408280819,1773347431912,-19625.03991294,0.00014899,2]
[408280820,1773347431922,-1200.0,0.00014938,2]
[408280821,1773347431931,-150.0,0.00014938,2]
[408280822,1773347431940,-500.0,0.00014939,2]
[408280823,1773347431949,-500.0,0.00014939,2]
[408280824,1773347431959,-500.0,0.00014939,2]
[408280825,1773347431968,-200.0,0.00014939,2]
[408280826,1773347431977,-500.0,0.00014939,2]
[408280827,1773347431987,-500.0,0.00014939,2]
[408280828,1773347431996,-500.0,0.00014939,2]
[408280829,1773347432005,-151.0,0.00014939,2]
[408280830,1773347432014,-500.0,0.00014939,2]
[408280831,1773347432023,-151.0,0.00014939,2]
[408280832,1773347432032,-500.0,0.00014939,2]
[408280833,1773347432041,-151.0,0.00014939,2]
[408280834,1773347432050,-500.0,0.00014939,2]
[408280836,1773347432060,-151.0,0.00014939,2]
[408280837,1773347432069,-151.0,0.00014939,2]
[408280838,1773347432078,-500.0,0.00014939,2]
[408280839,1773347432087,-151.0,0.00014939,2]
[408280840,1773347432096,-500.0,0.00014939,2]
[408280841,1773347432105,-151.0,0.00014939,2]
[408280842,1773347432114,-151.0,0.00014939,2]
[408280843,1773347432123,-151.0,0.00014939,2]
[408280844,1773347432132,-151.0,0.00014939,2]
[408280845,1773347432141,-151.0,0.00014939,2]
[408280846,1773347432150,-152.23290122,0.00014939,2]
[408280847,1773347432159,-151.0,0.00014939,2]
[408280848,1773347432168,-151.0,0.00014939,2]
[408280849,1773347432178,-151.0,0.00014939,2]
[408280850,1773347432187,-151.0,0.00014939,2]
[408280851,1773347432197,-151.0,0.00014939,2]
[408280852,1773347432206,-154.10952011,0.00014939,2]
[408280853,1773347432215,-3822.73021393,0.00014952,2]
[408280854,1773347432232,-360.80856145,0.00014952,2]
[408280855,1773347432270,-110533.52737188,0.00014952,2]
[408280856,1773347432281,-13059.37731899,0.00014952,2]
[408280857,1773347432292,-19271.91731901,0.00014952,2]
[408280861,1773347437867,-6352.36441075,0.00014952,2]
[408280862,1773347437876,-250.0,0.00015,2]
[408280863,1773347437885,-742.82,0.00015,2]
[408280864,1773347437895,-500.0,0.00015,30]
[408280865,1773347437904,-748.24429007,0.00015,30]
[408280866,1773347437913,-500.0,0.00015,30]
[408280867,1773347437924,-500.0,0.00015,30]
[408280868,1773347437933,-500.0,0.00015,30]
[408280869,1773347437942,-500.0,0.00015,30]
[408280870,1773347437951,-500.0,0.00015,30]
[408280871,1773347437960,-500.0,0.00015,30]
[408280872,1773347437969,-500.0,0.00015,30]
[408280873,1773347437978,-500.0,0.00015,30]
[408280874,1773347437987,-500.0,0.00015,30]
[408280875,1773347437996,-500.0,0.00015,30]
[408280876,1773347438004,-500.0,0.00015,30]
[408280877,1773347438014,-686.0,0.00015005,2]
[408280878,1773347438024,-174.29,0.00015045,2]
[408280879,1773347438034,-438.0,0.00015063,2]
[408280880,1773347438044,-397.0,0.00015063,2]
[408280881,1773347438053,-398.01,0.00015076,2]
[408280882,1773347438063,-378.0,0.00015086,2]
[408280883,1773347438072,-228.0,0.00015093,2]
[408280884,1773347438081,-150.0,0.00015096,2]
[408280885,1773347438091,-2000.0,0.00015104,2]
[408280886,1773347438100,-1852.42,0.00015105,2]
[408280887,1773347438110,-837.0,0.00015114,2]
[408280888,1773347438119,-166.66,0.00015187,2]
[408280889,1773347438128,-742.82,0.00015274,2]
[408280891,1773347438137,-263.81130861,0.00015369,2]
[408280893,1773347438147,-3040.46499613,0.00015432,2]
[408280895,1773347438156,-500.0,0.00015454,2]
[408280897,1773347438165,-500.0,0.00015454,2]
[408280898,1773347438174,-500.0,0.00015454,2]
[408280901,1773347438183,-500.0,0.00015454,2]
[408280903,1773347438192,-500.0,0.00015454,2]
[408280905,1773347438202,-500.0,0.00015454,2]
[408280908,1773347438211,-500.0,0.00015454,2]
[408280911,1773347438220,-500.0,0.00015454,2]
[408280913,1773347438229,-500.0,0.00015454,2]
[408280915,1773347438238,-500.0,0.00015454,2]
[408280918,1773347438247,-500.0,0.00015454,2]
[408280921,1773347438257,-500.0,0.00015454,2]
[408280923,1773347438266,-500.0,0.00015454,2]
[408280925,1773347438277,-500.0,0.00015454,2]
[408280927,1773347438287,-500.0,0.00015454,2]
[408280929,1773347438296,-591.93325222,0.00015454,2]
[408280931,1773347438305,-500.0,0.00015454,2]
[408280933,1773347438314,-500.0,0.00015454,2]
[408280935,1773347438327,-500.0,0.00015454,2]
[408280937,1773347438338,-500.0,0.00015454,2]
[408280939,1773347438349,-500.0,0.00015454,2]
[408280941,1773347438359,-500.0,0.00015454,2]
[408280943,1773347438369,-500.0,0.00015454,2]
[408280945,1773347438379,-500.0,0.00015454,2]
[408280947,1773347438388,-500.0,0.00015454,2]
[408280949,1773347438397,-500.0,0.00015454,2]
[408280951,1773347438407,-500.0,0.00015454,2]
[408280953,1773347438416,-500.0,0.00015454,2]
[408280955,1773347438425,-500.0,0.00015454,2]
[408280957,1773347438435,-500.0,0.00015454,2]
[408280959,1773347438444,-4280.89830304,0.00015455,2]
[408280971,1773347440288,-15344.14160986,0.00015455,2]
[408280972,1773347440302,-200.0,0.00015487,2]
[408280973,1773347440315,-166.66,0.00015494,2]
[408280974,1773347440326,-177.15,0.000155,2]
[408280975,1773347440339,-742.82,0.00015548,2]
[408280976,1773347440353,-200.0,0.00015706,2]
[408280977,1773347440363,-14949.8341309,0.00015731,2]
[408280978,1773347440373,-150.0,0.00015757,2]
[408280979,1773347440385,-500.0,0.00015757,2]
[408280980,1773347440397,-500.0,0.00015757,2]
[408280981,1773347440409,-150.0,0.00015757,2]
[408280982,1773347440421,-150.0,0.00015757,2]
[408280983,1773347440433,-448.0,0.00015757,2]
[408280984,1773347440445,-166.66,0.000158,2]
[408280985,1773347440456,-150.0,0.00015812,2]
[408280986,1773347440467,-500.0,0.00015812,2]
[408280987,1773347440479,-150.0,0.00015812,2]
[408280988,1773347440490,-500.0,0.00015812,2]
[408280989,1773347440502,-448.0,0.00015812,2]
[408280990,1773347440514,-742.82,0.00015822,2]
[408280991,1773347440525,-398.01,0.00015829,2]
[408280992,1773347440537,-1065.0,0.00015837,2]
[408280993,1773347440547,-297.0,0.00015837,2]
[408280994,1773347440558,-150.0,0.00015867,2]
[408280995,1773347440568,-500.0,0.00015867,2]
[408280996,1773347440579,-153.29620988,0.00015867,2]
[408280997,1773347440593,-500.0,0.00015867,2]
[408280998,1773347440605,-448.0,0.00015867,2]
[408280999,1773347440616,-500.0,0.00015867,2]
[408281000,1773347440627,-764.0,0.00015884,2]
[408281001,1773347440639,-830.99,0.00015905,2]
[408281002,1773347440652,-452.39746833,0.00015921,2]
[408281003,1773347440663,-500.0,0.00015921,2]
[408281005,1773347440673,-448.0,0.00015921,2]
[408281008,1773347440685,-168.3299599,0.00015926,2]
[408281010,1773347440697,-500.0,0.00015926,2]
[408281011,1773347440709,-500.0,0.00015937,2]
[408281013,1773347440721,-500.0,0.00015937,2]
[408281014,1773347440731,-500.0,0.00015937,2]
[408281016,1773347440740,-500.0,0.00015937,2]
[408281018,1773347440749,-3173.57426313,0.0001596,2]
[408281019,1773347440756,-500.0,0.00015976,2]
[408281020,1773347440764,-448.0,0.00015976,2]
[408281021,1773347440774,-19625.0399129,0.0001601,2]
[408281022,1773347440783,-600.0,0.00016013,2]
[408281023,1773347440792,-5000.0,0.00016013,2]
[408281024,1773347440801,-287.27422917,0.00016013,2]
[408281025,1773347440810,-2866.2434012,0.00016013,2]
[408281026,1773347440819,-300.0,0.00016013,2]
[408281027,1773347440829,-500.0,0.00016013,2]
[408281028,1773347440839,-600.0,0.00016013,2]
[408281029,1773347440848,-500.0,0.00016013,2]
[408281030,1773347440857,-600.0,0.00016031,2]
[408281031,1773347440866,-250.0,0.00016031,2]
[408281032,1773347440876,-500.0,0.00016031,2]
[408281033,1773347440885,-448.0,0.00016031,2]
[408281034,1773347440894,-200.0,0.00016035,2]
[408281035,1773347440903,-1722.0,0.00016042,2]
[408281036,1773347440912,-255.0,0.00016058,2]
[408281037,1773347440921,-500.0,0.00016086,2]
[408281038,1773347440932,-448.0,0.00016086,2]
[408281039,1773347440941,-742.82,0.00016096,2]
[408281040,1773347440950,-166.66,0.00016107,2]
[408281041,1773347440959,-2000.0,0.00016109,2]
[408281042,1773347440970,-500.0,0.00016141,2]
[408281043,1773347440979,-448.0,0.00016141,2]